fUST/lending_fUST_20240917
["ID","MTS","AMOUNT","RATE_DAILY","PERIOD"]
[338400469,1726585449289,1000.0,0.00024,60]
[338400470,1726585449708,500.0,0.00024,60]
[338400471,1726585450726,1000.0,0.00024,60]
[338400472,1726585450960,500.0,0.00024,60]
[338400473,1726585452487,1000.0,0.00024,60]
[338400474,1726585453277,1271.52,0.00024,60]
[338400475,1726585454379,1260.19,0.00024,60]
[338400476,1726585455316,500.0,0.00024,60]
[338400477,1726585458981,949.91,0.00024,60]
[338400478,1726585459771,1000.0,0.00024,60]
[338400479,1726585459834,1000.0,0.00024,60]
[338400480,1726585467049,500.0,0.00024,60]
[338400481,1726585467818,1339.31,0.00024,60]
[338400482,1726585469800,766.42,0.00024,60]
[338400483,1726585469940,500.0,0.00024,60]
[338400484,1726585470793,1000.0,0.00024,60]
[338400485,1726585470900,507.98052677,0.00024,60]
[338400486,1726585471582,6172.22,0.00024,60]
[338400487,1726585471991,500.0,0.00024,60]
[338400488,1726585472913,1000.0,0.00024,60]
[338400489,1726585473018,587.36,0.00024,60]
[338400490,1726585473331,682.23,0.00024,60]
[338400491,1726585474181,500.0,0.00024,60]
[338400492,1726585474608,500.0,0.00024,60]
[338400493,1726585474823,1000.0,0.00024,60]
[338400494,1726585475680,500.0,0.00024,60]
[338400495,1726585475809,500.0,0.00024,60]
[338400496,1726585476103,7705.79,0.00024,60]
[338400497,1726585476730,500.0,0.00024,60]
[338400498,1726585478588,500.0,0.00024,60]
[338400499,1726585479471,500.0,0.00024,60]
[338400500,1726585479707,588.15,0.00024,60]
[338400501,1726585480172,666.27,0.00024,60]
[338400502,1726585480718,2255.06,0.00024,60]
[338400503,1726585481009,500.0,0.00024,60]
[338400504,1726585481083,717.78,0.00024,60]
[338400505,1726585481476,500.0,0.00024,60]
[338400506,1726585482304,1000.0,0.00024,60]
[338400507,1726585483889,1000.0,0.00024,60]
[338400508,1726585484767,500.0,0.00024,60]
[338400509,1726585485118,1031.2,0.00024,60]
[338400510,1726585485802,952.85,0.00024,60]
[338400511,1726585486073,500.0,0.00024,60]
[338400512,1726585486199,1000.0,0.00024,60]
[338400513,1726585486838,1554.16,0.00024,60]
[338400514,1726585487037,500.0,0.00024,60]
[338400515,1726585487275,569.84292169,0.0001401,2]
[338400516,1726585488432,1000.0,0.00024,60]
[338400517,1726585489466,500.0,0.00024,60]
[338400518,1726585490023,907.54,0.00024,60]
[338400519,1726585490647,1000.0,0.00024,60]
[338400520,1726585490731,500.0,0.00024,60]
[338400521,1726585490803,500.0,0.00024,60]
[338400522,1726585491078,602.53,0.00024,60]
[338400523,1726585491175,1674.32,0.00024,60]
[338400524,1726585491877,1004.21,0.00024,60]
[338400525,1726585492085,609.57339974,0.00024,60]
[338400526,1726585492660,500.0,0.00024,60]
[338400527,1726585495163,500.0,0.00024,60]
[338400528,1726585495254,500.0,0.00024,60]
[338400529,1726585496624,500.0,0.00024,60]
[338400530,1726585497586,500.0,0.00024,60]
[338400531,1726585497679,500.0,0.00024,60]
[338400532,1726585497759,744.34,0.00024,60]
[338400533,1726585497951,705.66,0.00024,60]
[338400534,1726585498033,2498.12,0.00024,60]
[338400535,1726585498106,1000.0,0.00024,60]
[338400536,1726585499211,594.69,0.00024,60]
[338400537,1726585499468,500.0,0.00024,60]
[338400538,1726585499832,1296.87,0.00024,60]
[338400539,1726585500421,500.0,0.00024,60]
[338400540,1726585501443,1000.0,0.00024,60]
[338400541,1726585502007,569.74,0.00024,60]
[338400542,1726585502147,1569.36,0.00024,60]
[338400543,1726585502394,500.0,0.00024,60]
[338400544,1726585503356,500.0,0.00024,60]
[338400553,1726585507128,819.31,0.00024,60]
[338400554,1726585507352,2147.17,0.00024,60]
[338400555,1726585507496,1088.2,0.00024,60]
[338400557,1726585508229,1244.98,0.00024,60]
[338400558,1726585508905,726.19,0.00024,60]
[338400559,1726585509348,1000.0,0.00024,60]
[338400560,1726585511884,310.42780539,0.00024,60]
[338400561,1726585512190,1000.0,0.00024,60]
[338400562,1726585512564,273.40363257,0.00024,60]
[338400563,1726585513089,1470.91,0.00024,60]
[338400564,1726585513867,1587.18,0.00024,60]
[338400565,1726585516053,912.49,0.00024,60]
[338400566,1726585518172,500.0,0.00024,60]
[338400567,1726585518651,500.0,0.00024,60]
[338400568,1726585519395,535.39581077,0.00024,60]
[338400569,1726585519851,500.0,0.00024,60]
[338400570,1726585521665,500.0,0.00024,60]
[338400571,1726585522386,988.41,0.00024,60]
[338400572,1726585523040,1573.88,0.00024,60]
[338400573,1726585524111,1636.09,0.00024,60]
[338400574,1726585525225,1483.98,0.00024,60]
[338400575,1726585525466,500.0,0.00024,60]
[338400576,1726585527154,1351.87,0.00024,60]
[338400577,1726585527682,500.0,0.00024,60]
[338400578,1726585529127,500.0,0.00024,60]
[338400579,1726585532603,1693.24,0.00024,60]
[338400580,1726585533097,542.68,0.00024,60]
[338400581,1726585533953,500.0,0.00024,60]
[338400582,1726585534097,500.0,0.00024,60]
[338400583,1726585534393,572.59,0.00024,60]
[338400584,1726585534630,858.86,0.00024,60]
[338400585,1726585535760,758.66,0.00024,60]
[338400586,1726585536553,983.58,0.00024,60]
[338400587,1726585542091,1261.28,0.00024,60]
[338400588,1726585542271,690.58,0.00024,60]
[338400589,1726585543324,500.0,0.00024,60]
[338400590,1726585543472,1406.54,0.00024,60]
[338400591,1726585546211,2061.52,0.00024,60]
[338400592,1726585547000,711.37,0.00024,60]
[338400593,1726585547390,1000.0,0.00024,60]
[338400594,1726585548399,3406.29810817,0.0001401,2]
[338400595,1726585548688,531.25,0.00024,60]
[338400596,1726585548901,1000.0,0.00024,60]
[338400597,1726585548973,1394.71,0.00024,60]
[338400598,1726585550380,1000.0,0.00024,60]
[338400599,1726585551403,500.0,0.00024,60]
[338400600,1726585552014,1000.0,0.00024,60]
[338400601,1726585552135,504.86,0.00024,60]
[338400602,1726585553591,1000.0,0.00024,60]
[338400603,1726585555304,1000.0,0.00024,60]
[338400604,1726585555521,443.48992617,0.00024,60]
[338400605,1726585555769,794.36,0.00024,60]
[338400606,1726585556679,1053.34,0.00024,60]
[338400607,1726585557388,1000.0,0.00024,60]
[338400608,1726585557454,3257.89,0.00024,60]
[338400609,1726585558154,500.0,0.00024,60]
[338400610,1726585558675,1000.0,0.00024,60]
[338400611,1726585560193,500.0,0.00024,60]
[338400612,1726585560498,272.28034695,0.00024,60]
[338400613,1726585560582,500.0,0.00024,60]
[338400614,1726585560661,1000.0,0.00024,60]
[338400615,1726585561068,512.27417214,0.00024,60]
[338400616,1726585561919,534.05,0.00024,60]
[338400617,1726585562111,1000.0,0.00024,60]
[338400618,1726585563784,500.0,0.00024,60]
[338400619,1726585565821,685.35,0.00024,60]
[338400620,1726585565891,500.0,0.00024,60]
[338400621,1726585565958,500.0,0.00024,60]
[338400623,1726585566288,500.0,0.00024,60]
[338400624,1726585566350,500.0,0.00024,60]
[338400625,1726585571016,500.0,0.00024,60]
[338400626,1726585571130,500.0,0.00024,60]
[338400627,1726585573500,688.83,0.00024,60]
[338400628,1726585574395,653.02,0.00024,60]
[338400629,1726585575155,500.0,0.00024,60]
[338400630,1726585577986,2140.83,0.00024,60]
[338400631,1726585578413,500.0,0.00024,60]
[338400632,1726585578850,500.0,0.00024,60]
[338400633,1726585579706,2478.89,0.00024,60]
[338400634,1726585579777,1000.0,0.00024,60]
[338400635,1726585581123,1000.0,0.00024,60]
[338400636,1726585581741,500.0,0.00024,60]
[338400637,1726585582593,1000.0,0.00024,60]
[338400638,1726585583174,500.0,0.00024,60]
[338400639,1726585583938,1000.0,0.00024,60]
[338400640,1726585585091,1308.98,0.00024,60]
[338400641,1726585585270,1000.0,0.00024,60]
[338400642,1726585586070,1018.74,0.00024,60]
[338400643,1726585586692,1000.0,0.00024,60]
[338400644,1726585588082,1000.0,0.00024,60]
[338400645,1726585588867,3135.63,0.00024,60]
[338400646,1726585588945,741.62,0.00024,60]
[338400647,1726585589422,1000.0,0.00024,60]
[338400648,1726585591126,1000.0,0.00024,60]
[338400649,1726585591406,500.0,0.00024,60]
[338400650,1726585592127,500.0,0.00024,60]
[338400651,1726585593599,2011.17,0.00024,60]
[338400652,1726585594869,981.82,0.00024,60]
[338400653,1726585596290,500.0,0.00024,60]
[338400654,1726585597241,1000.0,0.00024,60]
[338400655,1726585597425,500.0,0.00024,60]
[338400656,1726585600667,500.0,0.00024,60]
[338400657,1726585601724,2255.03,0.00024,60]
[338400658,1726585602712,1187.46,0.00024,60]
[338400659,1726585606419,630.45,0.00024,60]
[338400660,1726585606928,540.79,0.00024,60]
[338400661,1726585607439,526.08,0.00024,60]
[338400662,1726585607519,500.0,0.00024,60]
[338400663,1726585608260,1660.99,0.00024,60]
[338400664,1726585611650,500.0,0.00024,60]
[338400665,1726585612046,726.05,0.00024,60]
[338400666,1726585614840,500.0,0.00024,60]
[338400667,1726585616840,500.0,0.00024,60]
[338400668,1726585616906,500.0,0.00024,60]
[338400669,1726585619158,500.0,0.00024,60]
[338400670,1726585619700,500.0,0.00024,60]
[338400671,1726585621018,1616.23,0.00024,60]
[338400672,1726585621480,500.0,0.00024,60]
[338400673,1726585622139,733.47,0.00024,60]
[338400674,1726585624612,500.0,0.00024,60]
[338400675,1726585625459,3949.42,0.00024,60]
[338400676,1726585627442,500.0,0.00024,60]
[338400677,1726585627576,697.84,0.00024,60]
[338400678,1726585629163,563.65,0.00024,60]
[338400679,1726585630853,500.0,0.00024,60]
[338400680,1726585631802,500.0,0.00024,60]
[338400681,1726585632098,815.03,0.00024,60]
[338400683,1726585633948,500.0,0.00024,60]
[338400684,1726585634040,500.0,0.00024,60]
[338400685,1726585634474,500.0,0.00024,60]
[338400686,1726585635704,787.39,0.00024,60]
[338400687,1726585636124,800.92,0.00024,60]
[338400688,1726585636972,1880.53,0.00024,60]
[338400689,1726585637858,500.0,0.00024,60]
[338400690,1726585638062,1681.28,0.00024,60]
[338400691,1726585641265,1631.05,0.00024,60]
[338400692,1726585641394,500.0,0.00024,60]
[338400693,1726585642653,6043.71,0.00024,60]
[338400694,1726585643897,500.0,0.00024,60]
[338400695,1726585644183,500.0,0.00024,60]
[338400696,1726585644678,500.0,0.00024,60]
[338400697,1726585646135,500.0,0.00024,60]
[338400698,1726585647333,569.91,0.00024,60]
[338400699,1726585648751,1658.68,0.00024,60]
[338400700,1726585649312,500.0,0.00024,60]
[338400701,1726585649890,561.41,0.00024,60]
[338400702,1726585651690,500.0,0.00024,60]
[338400703,1726585652202,653.05,0.00024,60]
[338400704,1726585652819,500.0,0.00024,60]
[338400705,1726585653422,500.0,0.00024,60]
[338400706,1726585653705,500.0,0.00024,60]
[338400707,1726585654631,500.0,0.00024,60]
[338400708,1726585656607,1436.49,0.00024,60]
[338400709,1726585656667,517.08031939,0.00024,60]
[338400710,1726585656737,500.0,0.00024,60]
[338400711,1726585657627,500.0,0.00024,60]
[338400712,1726585658174,500.0,0.00024,60]
[338400713,1726585660096,500.0,0.00024,60]
[338400714,1726585660953,655.13,0.00024,60]
[338400715,1726585662921,991.93,0.00024,60]
[338400716,1726585664336,500.0,0.00024,60]
[338400717,1726585665100,297.36995854,0.00024,60]
[338400718,1726585665571,1608.93,0.00024,60]
[338400719,1726585666227,500.0,0.00024,60]
[338400720,1726585666486,729.13,0.00024,60]
[338400722,1726585670535,500.0,0.00024,60]
[338400723,1726585671043,1123.06,0.00024,60]
[338400724,1726585671362,597.75,0.00024,60]
[338400725,1726585672489,1567.92,0.00024,60]
[338400726,1726585673655,776.89,0.00024,60]
[338400727,1726585674637,500.0,0.00024,60]
[338400728,1726585675509,500.0,0.00024,60]
[338400729,1726585677254,250.0,0.00024,60]
[338400730,1726585677315,1391.77,0.00024,60]
[338400731,1726585677384,500.0,0.00024,60]
[338400732,1726585680149,500.0,0.00024,60]
[338400733,1726585681699,500.0,0.00024,60]
[338400734,1726585683738,500.0,0.00024,60]
[338400735,1726585684246,500.58848827,0.00024,60]
[338400736,1726585684868,1528.26,0.00024,60]
[338400737,1726585685231,1018.02,0.00024,60]
[338400738,1726585686587,500.0,0.00024,60]
[338400739,1726585686755,500.0,0.00024,60]
[338400740,1726585687220,1269.85,0.00024,60]
[338400741,1726585687384,502.45860434,0.00024,60]
[338400742,1726585691695,520.07,0.00024,60]
[338400743,1726585691799,656.8,0.00024,60]
[338400744,1726585692589,571.41,0.00024,60]
[338400745,1726585692696,500.0,0.00024,60]
[338400746,1726585692835,500.0,0.00024,60]
[338400747,1726585693796,667.11,0.00024,60]
[338400748,1726585694532,500.0,0.00024,60]
[338400749,1726585694788,500.0,0.00024,60]
[338400750,1726585696218,7384.72,0.00024,60]
[338400751,1726585696746,500.0,0.00024,60]
[338400752,1726585697668,721.71,0.00024,60]
[338400753,1726585700752,1489.4,0.00024,60]
[338400754,1726585701591,4706.52,0.00024,60]
[338400755,1726585701808,934.63,0.00024,60]
[338400756,1726585702002,1208.72,0.00024,60]
[338400757,1726585703160,500.0,0.00024,60]
[338400758,1726585704602,2632.24,0.00024,60]
[338400759,1726585704670,503.59644717,0.00024,60]
[338400760,1726585705951,596.63,0.00024,60]
[338400761,1726585706120,594.31,0.00024,60]
[338400762,1726585706182,991.88,0.00024,60]
[338400763,1726585707176,500.0,0.00024,60]
[338400764,1726585707755,500.0,0.00024,60]
[338400765,1726585707818,500.0,0.00024,60]
[338400766,1726585708599,500.0,0.00024,60]
[338400767,1726585710428,5915.04,0.00024,60]
[338400768,1726585710520,1218.54,0.00024,60]
[338400769,1726585710600,557.39,0.00024,60]
[338400770,1726585710664,887.95,0.00024,60]
[338400771,1726585710895,500.0,0.00024,60]
[338400772,1726585711697,582.28,0.00024,60]
[338400773,1726585711852,713.32,0.00024,60]
[338400774,1726585716601,500.0,0.00024,60]
[338400775,1726585718018,2488.97,0.00024,60]
[338400776,1726585718089,3154.55,0.00024,60]
[338400777,1726585719251,500.0,0.00024,60]
[338400778,1726585719362,500.0,0.00024,60]
[338400779,1726585719725,500.0,0.00024,60]
[338400780,1726585719924,3013.0868,0.00024,60]
[338400781,1726585720909,1283.5,0.00024,60]
[338400782,1726585721884,500.0,0.00024,60]
[338400783,1726585721963,500.0,0.00024,60]
[338400784,1726585724066,500.0,0.00024,60]
[338400785,1726585724146,500.0,0.00024,60]
[338400786,1726585727458,567.72,0.00024,60]
[338400787,1726585728766,1604.55,0.00024,60]
[338400788,1726585730214,782.91,0.00024,60]
[338400791,1726585731167,500.0,0.00024,60]
[338400792,1726585732018,622.98312224,0.00024,60]
[338400793,1726585732934,592.84,0.00024,60]
[338400794,1726585733591,1254.44,0.00024,60]
[338400795,1726585736717,500.0,0.00024,60]
[338400796,1726585736789,500.0,0.00024,60]
[338400797,1726585737776,640.72,0.00024,60]
[338400798,1726585738475,527.14,0.00024,60]
[338400799,1726585739049,504.16,0.00024,60]
[338400800,1726585739234,500.0,0.00024,60]
[338400801,1726585739410,500.0,0.00024,60]
[338400802,1726585740611,500.0,0.00024,60]
[338400803,1726585744744,577.42,0.00024,60]
[338400804,1726585745140,-171.741517,0.00015771,2]
[338400805,1726585745162,-28.10075159,0.00016602,2]
[338400806,1726585746940,3193.29,0.00024,60]
[338400807,1726585747725,500.0,0.00024,60]
[338400808,1726585748107,500.0,0.00024,60]
[338400809,1726585748714,819.4,0.00024,60]
[338400810,1726585748790,1205.34,0.00024,60]
[338400811,1726585749392,500.0,0.00024,60]
[338400812,1726585749488,962.37,0.00024,60]
[338400813,1726585750049,500.0,0.00024,60]
[338400814,1726585751058,592.43,0.00024,60]
[338400815,1726585751995,500.0,0.00024,60]
[338400816,1726585752143,449.19804938,0.00024,60]
[338400817,1726585752215,1340.29,0.00024,60]
[338400818,1726585753010,500.0,0.00024,60]
[338400819,1726585754297,1503.97,0.00024,60]
[338400820,1726585755394,500.0,0.00024,60]
[338400823,1726585755782,500.0,0.00024,60]
[338400824,1726585757098,500.0,0.00024,60]
[338400825,1726585757793,938.55,0.00024,60]
[338400826,1726585760614,500.0,0.00024,60]
[338400827,1726585763120,2028.36,0.00024,60]
[338400829,1726585765466,649.89,0.00024,60]
[338400830,1726585765585,500.0,0.00024,60]
[338400831,1726585765700,1642.48,0.00024,60]
[338400832,1726585769802,1126.37,0.00024,60]
[338400833,1726585770479,1003.32,0.00024,60]
[338400834,1726585770567,500.0,0.00024,60]
[338400835,1726585770664,1521.05,0.00024,60]
[338400836,1726585772112,508.06,0.00024,60]
[338400837,1726585773144,500.0,0.00024,60]
[338400838,1726585773771,500.0,0.00024,60]
[338400839,1726585774344,809.89,0.00024,60]
[338400840,1726585774659,1126.91,0.00024,60]
[338400841,1726585776077,500.0,0.00024,60]
[338400842,1726585777197,500.0,0.00024,60]
[338400843,1726585778033,3288.62,0.00024,60]
[338400844,1726585778670,500.0,0.00024,60]
[338400845,1726585778779,915.42,0.00024,60]
[338400846,1726585779631,1409.62,0.00024,60]
[338400851,1726585783010,616.89,0.00024,60]
[338400852,1726585783234,500.0,0.00024,60]
[338400853,1726585784390,500.0,0.00024,60]
[338400854,1726585784687,1785.17,0.00024,60]
[338400856,1726585786102,823.08,0.00024,60]
[338400857,1726585788076,1046.03,0.00024,60]
[338400858,1726585788529,1622.69,0.00024,60]
[338400859,1726585788686,500.0,0.00024,60]
[338400860,1726585788802,500.0,0.00024,60]
[338400861,1726585789258,500.0,0.00024,60]
[338400862,1726585789331,1309.56,0.00024,60]
[338400863,1726585789404,1508.3,0.00024,60]
[338400864,1726585789630,500.0,0.00024,60]
[338400865,1726585791439,500.0,0.00024,60]
[338400866,1726585793087,500.0,0.00024,60]
[338400867,1726585797386,1434.96,0.00024,60]
[338400868,1726585798053,500.0,0.00024,60]
[338400869,1726585798155,500.0,0.00024,60]
[338400870,1726585798215,500.0,0.00024,60]
[338400871,1726585799154,500.0,0.00024,60]
[338400872,1726585800038,500.72930063,0.00024,60]
[338400873,1726585800488,1591.79,0.00024,60]
[338400874,1726585802180,500.0,0.00024,60]
[338400875,1726585802247,500.0,0.00024,60]
[338400876,1726585803044,500.0,0.00024,60]
[338400877,1726585804279,1589.57,0.00024,60]
[338400881,1726585806350,500.0,0.00024,60]
[338400882,1726585808513,1009.45,0.00024,60]
[338400883,1726585809968,500.0,0.00024,60]
[338400884,1726585810369,500.0,0.00024,60]
[338400885,1726585811545,1661.52,0.00024,60]
[338400886,1726585812502,500.0,0.00024,60]
[338400887,1726585814049,946.62,0.00024,60]
[338400888,1726585814236,500.0,0.00024,60]
[338400889,1726585815442,867.01,0.00024,60]
[338400890,1726585817799,1281.32,0.00024,60]
[338400891,1726585819353,2498.32,0.00024,60]
[338400892,1726585821364,967.78,0.00024,60]
[338400893,1726585821622,1183.91,0.00024,60]
[338400894,1726585822188,1541.89,0.00024,60]
[338400895,1726585822284,500.0,0.00024,60]
[338400896,1726585822361,2640.24,0.00024,60]
[338400897,1726585823382,770.5,0.00024,60]
[338400898,1726585825442,511.79,0.00024,60]
[338400899,1726585826719,524.07,0.00024,60]
[338400900,1726585826931,500.0,0.00024,60]
[338400901,1726585830080,2051.63,0.00024,60]
[338400902,1726585830204,500.0,0.00024,60]
[338400903,1726585831025,906.61,0.00024,60]
[338400904,1726585831212,2665.11,0.00024,60]
[338400916,1726585831613,500.0,0.00024,60]
[338400917,1726585831898,-2630.5513157,0.00016156,2]
[338400918,1726585831908,-150.0,0.00016408,2]
[338400919,1726585831918,-589.717758,0.00016526,2]
[338400920,1726585831928,-589.717758,0.0001653,2]
[338400921,1726585831938,-589.717758,0.00016534,2]
[338400922,1726585831948,-589.717758,0.00016539,2]
[338400923,1726585831957,-589.717758,0.00016543,2]
[338400924,1726585831967,-589.717758,0.00016547,2]
[338400925,1726585831977,-589.717758,0.00016552,2]
[338400926,1726585831986,-300.0,0.00016554,2]
[338400927,1726585831996,-300.0,0.00016554,2]
[338400928,1726585832006,-3065.865422,0.00016555,2]
[338400929,1726585832017,-589.717758,0.00016556,2]
[338400930,1726585832027,-501.08523776,0.00016561,2]
[338400990,1726585834484,500.0,0.00024,60]
[338400991,1726585834662,500.0,0.00024,60]
[338400992,1726585834802,1929.42,0.00024,60]
[338400993,1726585835560,877.07,0.00024,60]
[338401006,1726585837738,-88.63252024,0.00016561,2]
[338401007,1726585837748,-589.717758,0.00016565,2]
[338401008,1726585837758,-589.717758,0.00016569,2]
[338401009,1726585837767,-589.717758,0.00016574,2]
[338401010,1726585837776,-457.08686279,0.00016578,2]
[338401011,1726585837815,-132.63089521,0.00016578,2]
[338401012,1726585837824,-589.717758,0.00016582,2]
[338401013,1726585837834,-589.717758,0.00016587,2]
[338401014,1726585837844,-589.717758,0.00016591,2]
[338401015,1726585837853,-589.717758,0.00016595,2]
[338401016,1726585837863,-589.717758,0.000166,2]
[338401017,1726585837884,-221.89924841,0.00016602,2]
[338401018,1726585837893,-589.717758,0.00016604,2]
[338401019,1726585837903,-589.717758,0.00016608,2]
[338401020,1726585837912,-1457.423515,0.00017139,2]
[338401021,1726585837922,-250.0,0.00017239,2]
[338401022,1726585837931,-250.0,0.00017286,2]
[338401023,1726585837941,-250.0,0.00017333,2]
[338401024,1726585837950,-3000.0,0.00017347,2]
[338401025,1726585837960,-250.0,0.00017381,2]
[338401026,1726585837969,-3773.5939846,0.00017397,2]
[338401027,1726585837979,-250.0,0.00017428,2]
[338401028,1726585837988,-171.741517,0.00017431,2]
[338401029,1726585837997,-250.0,0.00017475,2]
[338401030,1726585838007,-250.0,0.00017522,2]
[338401031,1726585838017,-683.78425921,0.00017535,2]
[338401032,1726585838026,-683.78425921,0.00017535,2]
[338401033,1726585838035,-683.78425921,0.00017535,2]
[338401034,1726585838044,-683.78425921,0.00017535,2]
[338401035,1726585838053,-17463.9299155,0.00017536,2]
[338401036,1726585838063,-1808.8471285,0.0001757,2]
[338401037,1726585838072,-250.0,0.0001757,2]
[338401038,1726585838084,-250.0,0.00017617,2]
[338401039,1726585838093,-250.0,0.00017664,2]
[338401040,1726585838103,-250.0,0.00017712,2]
[338401041,1726585838112,-250.0,0.00017759,2]
[338401042,1726585838124,-250.0,0.00017806,2]
[338401043,1726585838134,-24900.0,0.00017843,2]
[338401044,1726585838144,-250.0,0.00017853,2]
[338401045,1726585838153,-250.0,0.00017901,2]
[338401046,1726585838163,-250.0,0.00017948,2]
[338401047,1726585838173,-250.0,0.00017995,2]
[338401048,1726585838183,-300.0,0.00018,3]
[338401049,1726585838192,-250.0,0.00018043,2]
[338401050,1726585838201,-420.0,0.00018089,2]
[338401051,1726585838210,-250.0,0.0001809,2]
[338401052,1726585838220,-250.0,0.00018137,2]
[338401053,1726585838229,-420.0,0.00018209,2]
[338401054,1726585838238,-160.0,0.00018423,3]
[338401055,1726585838248,-965.6675798,0.000185,2]
[338401056,1726585838257,-300.0,0.000185,2]
[338401057,1726585838266,-597.74,0.000188,2]
[338401058,1726585838275,-541.85954172,0.00018957,2]
[338401059,1726585838285,-177.74,0.0001897,3]
[338401060,1726585838294,-533.27,0.0001897,3]
[338401061,1726585838303,-373.97168573,0.00018979,2]
[338401062,1726585838313,-430.99505741,0.00018979,2]
[338401063,1726585838323,-500.0,0.00018979,2]
[338401064,1726585838333,-582.12865471,0.00018979,2]
[338401065,1726585838343,-500.0,0.00018979,2]
[338401066,1726585838354,-500.0,0.00018979,2]
[338401067,1726585838366,-64288.045954,0.0001898,3]
[338401068,1726585838376,-160.0,0.00018984,4]
[338401069,1726585838385,-48664.7213368,0.0001899,3]
[338401070,1726585838395,-524.0,0.00019001,2]
[338401071,1726585838404,-150.0,0.00019001,2]
[338401072,1726585838414,-661.0,0.00019001,2]
[338401073,1726585838424,-500.0,0.0001902,2]
[338401074,1726585838433,-541.85954172,0.00019029,2]
[338401075,1726585838442,-541.85954172,0.000191,2]